[Event "1000GM Schev-A January 2024"]
[Site "Sunnyvale"]
[Date "2024.01.21"]
[Round "4.5"]
[White "Ramirez, Carlos"]
[Black "Xia, Joshua"]
[Result "0-1"]
[ECO "D98"]
[WhiteElo "2190"]
[BlackElo "1922"]
[Annotator "RC"]
[PlyCount "110"]
[EventDate "2024.01.20"]
[EventType "schev"]
[EventCountry "USA"]
[SourceTitle "playchess.com"]
[Source "ChessBase"]
[SourceQuality "1"]
[TimeControl "5400+30"]

1. d4 {[%emt 0:06:12]} Nf6 {[%emt 0:00:09]} 2. c4 {[%emt 0:05:55]} g6 {[%emt 0:00:07]} 3. Nc3 {[%emt 0:00:06]} d5 {[%emt 0:00:03]} 4. Nf3 {[%emt 0:00:24]} Bg7 {[%emt 0:00:13]} 5. Qb3 {[%emt 0:04:40]} dxc4 {[%emt 0:00:16]} 6. Qxc4 {[%emt 0:00:04]} O-O {[%emt 0:00:11]} 7. e4 {[%emt 0:00:03]} Nc6 {[%emt 0:01:05]} 8. Be2 {[%emt 0:04:52]} Bg4 {[%emt 0:04:18]} 9. Be3 {[%emt 0:00:10]} Bxf3 {[%emt 0:05:21]} 10. Bxf3 {[%emt 0:01:28]} e5 {[%emt 0:00:12]} 11. d5 {[%emt 0:00:16]} Nd4 {[%emt 0:03:29]} 12. O-O-O {[%emt 0:02:51]} Nxf3 {[%emt 0:01:02]} 13. gxf3 {[%emt 0:00:03]} Ne8 {[%emt 0:00:22]} 14. Kb1 {[%emt 0:00:49]} Nd6 {[%emt 0:00:14]} 15. Qb3 {[%emt 0:00:45]} Qf6 {[%emt 0:02:57]} 16. Rhg1 {[%emt 0:12:25]} Qf5 17. f4 Qxf4 {[%emt 0:03:17]} 18. Rg3 {[%emt 0:00:51]} Qg5 {[%emt 0:01:38]} 19. Rf1 Qh5 20. Rfg1 {[%emt 0:00:58]} Bh6 {[%emt 0:01:30]} 21. Bc5 {[%emt 0:02:03]} Bf4 {[%emt 0:00:42]} 22. R3g2 {[%emt 0:00:05]} Qh3 {[%emt 0:01:58]} 23. Qd1 {[%emt 0:04:17]} Bxh2 {[%emt 0:02:17]} 24. Qf1 {[%emt 0:00:19]} Bxg1 {[%emt 0:05:27]} 25. Rxg6+ {[%emt 0:00:35]} fxg6 {[%emt 0:00:03]} 26. Qxh3 {[%emt 0:00:14]} Bxf2 {[%emt 0:00:09]} 27. Qe6+ {[%emt 0:00:30]} Rf7 {[%emt 0:00:14]} 28. Bxd6 {[%emt 0:08:27]} cxd6 {[%emt 0:00:18]} 29. Nb5 {[%emt 0:00:12]} Bc5 {[%emt 0:00:55]} 30. a3 {[%emt 0:01:48]} a5 {[%emt 0:03:14]} 31. Nc7 {[%emt 0:05:17]} Rd8 {[%emt 0:01:57]} 32. Ne8 {[%emt 0:00:30]} Rxe8 {[%emt 0:01:51]} 33. Qxe8+ {[%emt 0:00:03]} Kg7 {[%emt 0:00:14]} 34. Qe6 {[%emt 0:00:11]} h5 {[%emt 0:00:39]} 35. a4 {[%emt 0:02:12]} h4 {[%emt 0:01:04]} 36. Kc2 {[%emt 0:00:27]} Rf4 {[%emt 0:03:51]} 37. Kd3 {[%emt 0:00:39]} Kh6 {[%emt 0:00:37]} 38. b3 {[%emt 0:07:42]} Kh5 {[%emt 0:01:59]} 39. Qc8 {[%emt 0:01:29]} b6 {[%emt 0:05:54]} 40. Qd7 {[%emt 0:00:41]} Kg5 {[%emt 0:07:27]} 41. Qh7 {[%emt 0:06:01]} Rf6 {[%emt 0:07:51]} 42. Qd7 {[%emt 0:02:40]} Bf2 {[%emt 0:05:42]} 43. Ke2 {[%emt 0:00:41]} Bd4 {[%emt 0:01:05]} 44. Qc8 {[%emt 0:05:56]} Bc5 {[%emt 0:02:35]} 45. Qd7 {[%emt 0:00:29]} Rf2+ {[%emt 0:01:19]} 46. Kd3 {[%emt 0:00:53]} Rf3+ {[%emt 0:00:18]} 47. Kd2 {[%emt 0:01:33]} h3 {[%emt 0:01:15]} 48. Ke2 {[%emt 0:01:31]} Rf2+ {[%emt 0:07:37]} 49. Kd3 {[%emt 0:00:19]} Kh4 {[%emt 0:01:24]} 50. Qh7+ {[%emt 0:00:23]} Kg3 {[%emt 0:00:20]} 51. Qxg6+ {[%emt 0:00:07]} Kh2 {[%emt 0:00:10]} 52. Kc4 {[%emt 0:05:27]} Rg2 {[%emt 0:02:11]} 53. Qh5 {[%emt 0:00:33]} Bf2 {[%emt 0:00:50]} 54. Qf3 {[%emt 0:10:24]} Bg3 {[%emt 0:17:39]} 55. Kb5 Rf2 {[%emt 0:00:30]} 0-1

[Event "1000GM Schev-A January 2024"]
[Site "Sunnyvale"]
[Date "2024.01.22"]
[Round "5.1"]
[White "Jasinski, Alexander"]
[Black "Stopa, Jacek"]
[Result "0-1"]
[ECO "B12"]
[WhiteElo "1951"]
[BlackElo "2344"]
[Annotator "RC"]
[PlyCount "88"]
[EventDate "2024.01.20"]
[EventType "schev"]
[EventCountry "USA"]
[SourceTitle "playchess.com"]
[Source "ChessBase"]
[SourceQuality "1"]
[TimeControl "5400+30"]

1. e4 {[%emt 0:00:01]} c6 {[%emt 1:31:00]} 2. d4 {[%emt 0:00:11]} d5 {[%emt 0:00:00]} 3. e5 Na6 {[%emt 0:00:00]} 4. Nf3 {[%emt 0:00:37]} Bg4 {[%emt 0:00:00]} 5. Be2 {[%emt 0:00:14]} e6 {[%emt 0:00:00]} 6. c3 {[%emt 0:02:14]} Ne7 {[%emt 0:00:00]} 7. Nbd2 {[%emt 0:02:05]} Nc7 {[%emt 0:00:00]} 8. h3 Bh5 {[%emt 0:03:30]} 9. O-O {[%emt 1:29:38]} Nc8 {[%emt 0:00:00]} 10. a4 {[%emt 0:00:00]} a5 {[%emt 0:00:00]} 11. Nb3 {[%emt 0:00:00]} Be7 {[%emt 0:00:00]} 12. Be3 {[%emt 0:00:00]} O-O {[%emt 0:00:00]} 13. g4 {[%emt 0:00:00]} Bg6 {[%emt 0:00:00]} 14. Ne1 {[%emt 0:00:00]} f5 {[%emt 0:00:00]} 15. f4 {[%emt 0:00:00]} Nb6 {[%emt 0:00:00]} 16. g5 {[%emt 0:00:00]} Nc4 {[%emt 0:00:00]} 17. Bc1 {[%emt 0:00:00]} Na6 {[%emt 0:00:00]} 18. Ng2 {[%emt 0:00:00]} b5 {[%emt 0:00:00]} 19. axb5 {[%emt 0:00:00]} cxb5 {[%emt 0:00:00]} 20. Bxc4 {[%emt 0:00:00]} bxc4 {[%emt 0:00:00]} 21. Nxa5 {[%emt 0:00:00]} Qb6 {[%emt 0:00:00]} 22. b4 {[%emt 0:00:00]} Nxb4 {[%emt 0:00:00]} 23. Qa4 {[%emt 0:00:00]} Be8 {[%emt 0:00:00]} 24. Qd1 {[%emt 0:00:00]} Rxa5 {[%emt 0:00:00]} 25. Rxa5 {[%emt 0:00:00]} Qxa5 {[%emt 0:00:00]} 26. cxb4 {[%emt 0:00:00]} Bxb4 {[%emt 0:00:00]} 27. Rf2 {[%emt 0:00:00]} Ba4 {[%emt 0:00:00]} 28. Qf1 {[%emt 0:00:00]} Bb3 {[%emt 0:00:00]} 29. Ne3 {[%emt 0:10:00]} Bc3 {[%emt 0:00:00]} 30. Nc2 {[%emt 0:00:00]} Qa4 {[%emt 0:00:00]} 31. Qd1 {[%emt 0:00:00]} Bxc2 {[%emt 0:00:00]} 32. Rxc2 {[%emt 0:00:00]} Bxd4+ {[%emt 0:00:00]} 33. Kh1 {[%emt 0:00:00]} Qb3 {[%emt 0:00:00]} 34. Kg2 {[%emt 0:00:00]} Ra8 {[%emt 0:00:00]} 35. Qe2 {[%emt 0:00:00]} Ra1 {[%emt 0:00:00]} 36. Kh2 {[%emt 0:00:00]} Qb1 {[%emt 0:00:00]} 37. Kg3 {[%emt 0:00:00]} Ba7 {[%emt 0:00:00]} 38. Kh4 {[%emt 0:00:00]} g6 {[%emt 0:00:00]} 39. Kg3 {[%emt 0:00:00]} Qb6 {[%emt 0:00:00]} 40. Qd2 {[%emt 0:00:00]} Qg1+ {[%emt 0:00:00]} 41. Kf3 {[%emt 0:00:00]} Rb1 {[%emt 0:00:00]} 42. Rc3 {[%emt 0:00:00]} Bd4 {[%emt 0:00:00]} 43. Qc2 {[%emt 0:00:00]} Rxc1 {[%emt 0:00:00]} 44. Qxc1 {[%emt 0:00:00]} Qf2# {[%emt 0:00:00]} 0-1

[Event "1000GM Schev-A January 2024"]
[Site "Sunnyvale"]
[Date "2024.01.22"]
[Round "5.2"]
[White "Moreno Trujillo, Alejandro"]
[Black "Yao, Hanchi"]
[Result "1-0"]
[ECO "E12"]
[WhiteElo "2485"]
[BlackElo "1998"]
[Annotator "RC"]
[PlyCount "87"]
[EventDate "2024.01.20"]
[EventType "schev"]
[EventCountry "USA"]
[SourceTitle "playchess.com"]
[Source "ChessBase"]
[SourceQuality "1"]
[TimeControl "5400+30"]

1. d4 {[%emt 0:00:30]} Nf6 {[%emt 0:06:49]} 2. c4 {[%emt 0:00:00]} e6 {[%emt 0:00:07]} 3. Nf3 {[%emt 0:00:06]} b6 {[%emt 0:00:02]} 4. a3 {[%emt 0:01:02]} Bb7 {[%emt 0:00:25]} 5. Nc3 {[%emt 0:00:15]} d5 {[%emt 0:04:56]} 6. cxd5 {[%emt 0:00:09]} Nxd5 {[%emt 0:00:18]} 7. e3 {[%emt 0:00:12]} a6 {[%emt 0:03:37]} 8. Bd3 {[%emt 0:00:29]} Nxc3 {[%emt 0:09:54]} 9. bxc3 {[%emt 0:00:21]} g6 {[%emt 0:00:04]} 10. O-O {[%emt 0:09:53]} Bg7 {[%emt 0:01:42]} 11. e4 {[%emt 0:02:04]} O-O {[%emt 0:06:50]} 12. Be3 {[%emt 0:05:32]} Nd7 {[%emt 0:02:13]} 13. Qe2 {[%emt 0:00:50]} c5 {[%emt 0:01:35]} 14. e5 {[%emt 0:02:17]} b5 {[%emt 0:01:31]} 15. Nd2 {[%emt 0:04:12]} c4 {[%emt 0:06:33]} 16. Be4 {[%emt 0:00:26]} Bxe4 {[%emt 0:00:16]} 17. Nxe4 {[%emt 0:00:03]} Nb6 {[%emt 0:00:05]} 18. Bg5 {[%emt 0:01:39]} Qc7 {[%emt 0:01:05]} 19. h4 {[%emt 0:00:55]} h6 {[%emt 0:01:26]} 20. Bd2 {[%emt 0:00:45]} Nd5 {[%emt 0:02:35]} 21. f4 {[%emt 0:01:05]} Qe7 {[%emt 0:03:58]} 22. h5 {[%emt 0:01:39]} Qh4 {[%emt 0:01:54]} 23. hxg6 {[%emt 0:01:32]} fxg6 {[%emt 0:00:47]} 24. Nc5 {[%emt 0:00:53]} Qe7 {[%emt 0:09:16]} 25. Qg4 {[%emt 0:01:56]} Kf7 {[%emt 0:00:08]} 26. Ne4 {[%emt 0:05:31]} Rfd8 {[%emt 0:03:28]} 27. Rf3 {[%emt 0:03:20]} Qc7 {[%emt 0:01:55]} 28. Re1 {[%emt 0:03:29]} Ne7 {[%emt 0:04:02]} 29. Nd6+ {[%emt 0:00:41]} Rxd6 {[%emt 0:03:09]} 30. exd6 {[%emt 0:00:02]} Qxd6 {[%emt 0:00:21]} 31. Rfe3 {[%emt 0:00:03]} Ra7 {[%emt 0:04:34]} 32. Rxe6 {[%emt 0:02:31]} Qd5 {[%emt 0:03:22]} 33. f5 {[%emt 0:03:38]} Qxf5 {[%emt 0:00:08]} 34. Rxe7+ {[%emt 0:00:07]} Rxe7 {[%emt 0:00:05]} 35. Rf1 {[%emt 0:00:16]} Kf6 {[%emt 0:00:06]} 36. Rxf5+ {[%emt 0:00:42]} gxf5 {[%emt 0:00:04]} 37. Qh4+ {[%emt 0:00:28]} Kf7 {[%emt 0:00:04]} 38. Qh5+ {[%emt 0:00:59]} Ke6 {[%emt 0:00:29]} 39. Qg6+ {[%emt 0:01:01]} Bf6 {[%emt 0:00:11]} 40. d5+ {[%emt 0:02:00]} Ke5 {[%emt 0:00:12]} 41. Bf4+ {[%emt 0:00:52]} Kxf4 {[%emt 0:00:20]} 42. Qxf6 {[%emt 0:00:33]} Re4 {[%emt 0:00:08]} 43. d6 {[%emt 0:01:04]} Kg3 {[%emt 0:00:06]} 44. Qg6+ {[%emt 0:00:28]} 1-0

[Event "1000GM Schev-A January 2024"]
[Site "Sunnyvale"]
[Date "2024.01.22"]
[Round "5.4"]
[White "Chinni, Rishabh"]
[Black "Ramirez, Carlos"]
[Result "1/2-1/2"]
[ECO "C07"]
[WhiteElo "1939"]
[BlackElo "2190"]
[Annotator "RC"]
[PlyCount "41"]
[EventDate "2024.01.20"]
[EventType "schev"]
[EventCountry "USA"]
[SourceTitle "playchess.com"]
[Source "ChessBase"]
[SourceQuality "1"]
[TimeControl "5400+30"]

1. e4 {[%emt 0:00:01]} e6 {[%emt 0:02:33]} 2. d4 {[%emt 0:00:04]} d5 {[%emt 0:00:05]} 3. Nd2 {[%emt 0:00:03]} c5 {[%emt 0:00:07]} 4. Ngf3 {[%emt 0:00:09]} cxd4 {[%emt 0:00:32]} 5. Nxd4 {[%emt 0:00:05]} Nc6 {[%emt 0:00:08]} 6. Nxc6 {[%emt 0:02:30]} bxc6 {[%emt 0:00:02]} 7. exd5 {[%emt 0:00:25]} cxd5 {[%emt 0:00:17]} 8. Nf3 {[%emt 0:01:51]} Nf6 {[%emt 0:01:23]} 9. c4 {[%emt 0:02:31]} Bb4+ {[%emt 0:01:16]} 10. Bd2 {[%emt 0:00:23]} Bxd2+ {[%emt 0:00:04]} 11. Qxd2 {[%emt 0:00:03]} O-O {[%emt 0:00:19]} 12. cxd5 {[%emt 0:06:30]} exd5 {[%emt 0:01:36]} 13. Be2 {[%emt 0:00:49]} Ne4 {[%emt 0:03:18]} 14. Qd4 {[%emt 0:02:10]} Ba6 {[%emt 0:00:52]} 15. b4 {[%emt 0:39:52]} Bxe2 {[%emt 0:04:37]} 16. Kxe2 {[%emt 0:00:00]} Re8 {[%emt 0:00:16]} 17. Rhe1 {[%emt 0:03:09]} Ng3+ {[%emt 0:11:50]} 18. Kd2 {[%emt 0:00:31]} Ne4+ {[%emt 0:00:24]} 19. Ke2 {[%emt 0:00:18]} Ng3+ {[%emt 0:27:28]} 20. Kd2 {[%emt 0:00:34]} Ne4+ {[%emt 0:01:40]} 21. Ke2 {[%emt 0:39:02]} 1/2-1/2

[Event "1000GM Schev-A January 2024"]
[Site "Sunnyvale"]
[Date "2024.01.22"]
[Round "5.5"]
[White "Xia, Joshua"]
[Black "Diaz Cordoba, Fredy"]
[Result "1/2-1/2"]
[ECO "B00"]
[WhiteElo "1922"]
[BlackElo "2240"]
[Annotator "RC"]
[PlyCount "68"]
[EventDate "2024.01.20"]
[EventType "schev"]
[EventCountry "USA"]
[SourceTitle "playchess.com"]
[Source "ChessBase"]
[SourceQuality "1"]
[TimeControl "5400+30"]

1. e4 {[%emt 0:00:03]} Nc6 {[%emt 0:09:33]} 2. d4 {[%emt 0:00:58]} e5 {[%emt 0:01:43]} 3. dxe5 {[%emt 0:03:47]} Nxe5 {[%emt 0:00:49]} 4. Nc3 {[%emt 0:00:48]} Bc5 {[%emt 0:00:59]} 5. Bf4 {[%emt 0:01:47]} Ng6 {[%emt 0:00:43]} 6. Bg3 {[%emt 0:00:38]} h5 {[%emt 0:00:44]} 7. h4 {[%emt 0:00:22]} Nf6 {[%emt 0:00:10]} 8. Nf3 {[%emt 0:04:14]} Qe7 {[%emt 0:02:24]} 9. Bc4 {[%emt 0:10:45]} b5 {[%emt 0:04:40]} 10. Nxb5 {[%emt 0:18:19]} Qxe4+ {[%emt 0:02:35]} 11. Qe2 {[%emt 0:01:17]} O-O {[%emt 0:00:13]} 12. Nxc7 {[%emt 0:11:27]} Rb8 {[%emt 0:03:10]} 13. O-O-O {[%emt 0:01:46]} Qxe2 {[%emt 0:01:30]} 14. Bxe2 {[%emt 0:00:07]} Ne4 {[%emt 0:00:11]} 15. Nd5 {[%emt 0:01:48]} Nxg3 {[%emt 0:04:30]} 16. fxg3 {[%emt 0:00:10]} Bf2 {[%emt 0:00:10]} 17. Nd4 {[%emt 0:07:04]} Bxg3 {[%emt 0:01:36]} 18. Bxh5 {[%emt 0:01:09]} Nf4 {[%emt 0:03:07]} 19. Nxf4 {[%emt 0:00:51]} Bxf4+ {[%emt 0:00:13]} 20. Kb1 {[%emt 0:00:06]} Rb6 {[%emt 0:07:51]} 21. Bf3 {[%emt 0:03:15]} a5 {[%emt 0:04:52]} 22. c3 {[%emt 0:02:27]} Ba6 {[%emt 0:00:54]} 23. Kc2 {[%emt 0:01:25]} Bc4 {[%emt 0:00:50]} 24. b3 {[%emt 0:00:28]} Be6 {[%emt 0:00:06]} 25. Nxe6 {[%emt 0:00:48]} dxe6 {[%emt 0:00:10]} 26. Rd4 {[%emt 0:00:24]} e5 {[%emt 0:00:33]} 27. Ra4 {[%emt 0:02:05]} Rb5 {[%emt 0:01:36]} 28. Rd1 {[%emt 0:00:31]} Rc8 {[%emt 0:01:41]} 29. c4 {[%emt 0:01:25]} Bg3 {[%emt 0:07:13]} 30. Rd7 {[%emt 0:02:01]} f5 {[%emt 0:02:21]} 31. Kd2 {[%emt 0:02:21]} Rbc5 {[%emt 0:01:29]} 32. Bd5+ {[%emt 0:00:26]} Kh8 {[%emt 0:01:50]} 33. h5 {[%emt 0:00:45]} e4 {[%emt 0:01:06]} 34. Rf7 {[%emt 0:04:52]} Rxd5+ {[%emt 0:00:38]} 1/2-1/2